Workbook

Sheet 157
B3: УТВЕРЖДЕНО
B4: Начальник Управления образования Исполнительного комитета муниципального образования города Казани
B7: ________________________И.А.Ризванов
B8: (подпись)
B10: СМЕТА
B11: доходов и расходов, по средствам, полученным от предпринимательской и иной приносящей доход деятельности на 2023 год
A14: Учреждение | B14: МАДОУ "Детский сад № 157 комбинированного вида" Приволжского района г.Казани
A15: Адрес
A16: Периодичность: годовая
A17: Индивидуальная (общая)
A18: Министерство, ведомство | B18: 821
A19: Раздел, подраздел | B19: 0701
A20: Целевая статья | B20: 0210342000
A21: Вид расходов | B21: 111,112,113,119,244,853,852,247
A22: Доп.КР | B22: 591,593,521,523,509,595,592
A23: Доп.ФК
A24: Единица измерения: | B24: руб.
A27: Наименование статьи | D27: Сумма
A28: 1.ДОХОДЫ
A29: Остаток средств на начало года | B29: Код дохода | D29: =SUM(D30:I37) -> 1,501.20
A30: Доходы, от операционной аренды | B30: 82100000000000000121
A31: Доходы от оказания платных услуг | B31: 82100000000000000131 | D31: 1,501.20
A32: Доходы от оказания услуг - родплата пришкольные лагеря | B32: 82100000000000004131
A33: Доходы от компенсации затрат | B33: 82100000000000000134
A34: Доходы по условным арендным платежам (от компенсации затрат на коммунальные услуги) | B34: 82100000000000000135
A35: Доход от возмещения ФСС расходов | B35: 82100000000000000139
A36: Доходы от сдачи металлолома, макулатуры, числившихся на балансе | B36: 82100000000000000440
A37: Иные доходы (гранты, добровольные пожертвования) | B37: 82100000000000000155
A38: Поступления текущего года | D38: =SUM(D39:I44) -> 400,000.00
A39: Доходы, от операционной аренды | B39: 82100000000000000121
A40: Доходы от оказания платных услуг | B40: 82100000000000000131 | D40: 400,000.00
A41: Доходы от оказания услуг - родплата пришкольные лагеря | B41: 82100000000000004131
A42: Доходы от компенсации затрат (охрана) | B42: 82100000000000000134
A43: Доходы по условным арендным платежам (от компенсации затрат на коммунальные услуги) | B43: 82100000000000000135
A44: Иные доходы (гранты, добровольные пожертвования) | B44: 82100000000000000155
A45: Всего доходов | D45: =D38+D29 -> 401,501.20
D46: Доп КР
A47: 2. РАСХОДЫ | B47: КОСГУ, ДопЭК | C47: Сумма итого | D47: 509 | E47: 591 | F47: 592 | G47: 593 | H47: 595 | I47: 521 | J47: 523
A48: Заработная плата | B48: 211 | C48: =SUM(D48:J48) -> 231,567.74 | D48: =SUM(D49:D50) -> 1,153.00 | E48: =SUM(E49:E50) -> 0.00 | F48: =SUM(F49:F50) -> 0.00 | G48: =SUM(G49:G50) -> 0.00 | I48: =SUM(I49:I50) -> 230,414.74 | J48: =SUM(J49:J50) -> 0.00
A49: - заработная плата педагогического персонала | B49: П211004 | C49: =SUM(D49:J49) -> 199,786.40 | D49: 1,153.00 | I49: 198,633.40
A50: - заработная плата вспомогательного персонала | B50: П211005 | C50: 31,781.34 | I50: 31,781.34
A51: Прочие выплаты | B51: 212 | C51: 0.00 | D51: =SUM(D52:D52) -> 0.00 | E51: =SUM(E52:E52) -> 0.00 | F51: =SUM(F52:F52) -> 0.00 | G51: =SUM(G52:G52) -> 0.00 | I51: =SUM(I52) -> 0.00 | J51: =SUM(J52) -> 0.00
A52: - суточные работникам (сотрудникам) при служебных командировках (кроме водителей) | B52: П212006 | C52: 0.00
A53: Начисления на выплаты по заработной плате | B53: 213 | C53: 69,933.46 | D53: =SUM(D54:D55) -> 348.20 | E53: =SUM(E54:E55) -> 0.00 | F53: =SUM(F54:F55) -> 0.00 | G53: =SUM(G54:G55) -> 0.00 | I53: =SUM(I54:I55) -> 69,585.26 | J53: =SUM(J54:J55) -> 0.00
A54: - начисления на заработную плату педагогического персонала | B54: П213004 | C54: 60,335.49 | D54: 348.20 | I54: 59,987.29
A55: - начисления на заработную плату вспомогательного персонала | B55: П213005 | C55: 9,597.97 | I55: 9,597.97
A56: Услуги связи | B56: 221 | C56: 0.00 | D56: =SUM(D57:D61) -> 0.00 | E56: =SUM(E57:E61) -> 0.00 | F56: =SUM(F57:F61) -> 0.00 | G56: =SUM(G57:G61) -> 0.00 | I56: =SUM(I57:I61) -> 0.00 | J56: =SUM(J57:J61) -> 0.00
A57: -услуги телефонной связи | B57: П221001 | C57: 0.00
A58: -плата за предоставление доступа к телефонной связи и Интернет(разовый) | B58: П221002 | C58: 0.00
A59: -услуги сотовой связи связи | B59: П221010 | C59: 0.00
A60: -плата за услуги сети Интернет | B60: П221012 | C60: 0.00
A61: -прочие услуги связи (радио, а/я) | B61: П221099 | C61: 0.00
A62: Транспортные услуги | B62: 222 | C62: 0.00 | D62: =SUM(D63:D63) -> 0.00 | E62: =SUM(E63:E63) -> 0.00 | F62: =SUM(F63:F63) -> 0.00 | G62: =SUM(G63:G63) -> 0.00 | I62: =SUM(I63) -> 0.00 | J62: =SUM(J63) -> 0.00
A63: - прочие транспортные услуги | B63: П222099 | C63: 0.00
A64: Коммунальные услуги | B64: 223 | C64: 11,362.00 | D64: =SUM(D65:D69) -> 0.00 | E64: =SUM(E65:E69) -> 0.00 | F64: 0.00 | G64: 0.00 | H64: 0.00 | I64: =SUM(I65:I69) -> 11,362.00 | J64: 0.00
A65: - электроснабжение | B65: П223001 | C65: 9,136.00 | I65: 9,136.00
A66: - теплоснабжение | B66: П223002 | C66: 0.00
A67: - водоснабжение | B67: П223004 | C67: 2,226.00 | I67: 2,226.00
A68: - оплата договоров на вывоз твердых коммунальных отходов с региональным оператором | B68: П223017 | C68: 0.00
A69: -прочие расход по коммунальным услугам, не включенные в вышеуказанные ДЭК | B69: П223099 | C69: 0.00
A70: Арендная плата за пользование имуществом | B70: 224 | C70: 0.00 | D70: =SUM(D71:D73) -> 0.00 | E70: =SUM(E71:E73) -> 0.00 | F70: 0.00 | G70: 0.00 | H70: 0.00 | I70: 0.00 | J70: 0.00
A71: - Аренда помещений | B71: П224001 | C71: 0.00
A72: -аренда транспорта, оборудования | B72: П224002 | C72: 0.00
A73: - прочие расходы по арендной лате за пользование имуществом | B73: П224099 | C73: 0.00
A74: Работы, услуги по содержанию имущества | B74: 225 | C74: 23,855.50 | D74: =SUM(D75:D94) -> 0.00 | E74: 0.00 | F74: =SUM(F75:F94) -> 0.00 | G74: 0.00 | H74: 0.00 | I74: 23,855.50 | J74: 0.00
A75: - обслуживание охранной и пожарной сигнализации | B75: П225001 | C75: 0.00
A76: - содержание в чистоте помещений, зданий, дворов, иного имущества (озеленение, уборка и вывоз снега ,мусора, отходов, утилизация мусора (ТБО), дератизация, дезинфекция, дезинсекция, газация, санитарно-гигиеническое обслуживание, мойка и чистка (химчистка) | B76: П225002 | C76: 0.00
A77: - проведение работ по ремонту и восстановлению эффективности функционирования коммунальных инженерных систем и коммуникаций, осуществляемые сверх регламентированного условиями поставки коммунальных услуг перечня работ (технологических нужд) | B77: П225003 | C77: 0.00
A78: - обеспечение функционирования и поддержки (восстановление) работоспособности объектов нефинансовых активов | B78: П225004 | C78: 0.00
A79: - зарплата внештатных сотрудников | B79: П225005 | C79: 0.00
A80: - текущий ремонт зданий, сооружений | B80: Н225007 | C80: 0.00
A81: - ТО и ремонт аппаратного обеспечения (оргтехника, мед.оборудования, комп.техника и т.д.), включающее контроль тех.состояния | B81: П225010 | C81: 11,217.50 | I81: 11,217.50
A82: - тех обслуживание транспортных средств | B82: П225011 | C82: 0.00
A83: - ремонт транспортных средств | B83: П225012 | C83: 0.00
A84: - тех осмотр транспортных средств | B84: П225013 | C84: 0.00
A85: - содержание трансп.средств (мойка и тд) | B85: П225014 | C85: 0.00
A86: - расходы на ТО и ремонт оборудования (торговое, кухонное, офисное, лифты и т.п.) | B86: П225015 | C86: 0.00
A87: - содержание в чистоте имущества, кроме недвижимого | B87: П225016 | C87: 12,638.00 | I87: 12,638.00
A88: - ТО приборов учета | B88: П225035 | C88: 0.00
A89: - противопожарные мероприятия (огнезащитная обработка чердачных перекрытий, замеры сопротивления изоляции, зарядка огнетушителей, опрессовка проводов) | B89: П225036 | C89: 0.00
A90: - содержание и ремонт объектов озеленения | B90: П225037 | C90: 0.00
A91: -расходы по валке и обрезке зеленных насаждений в муниципальных учреждениях образования | B91: П225040 | C91: 0.00
A92: -вывоз мусора ТКО для учреждений СКС | B92: П225050 | C92: 0.00
A93: - прочие первоочередные расходы по работам, услугам по содержанию имущества | B93: П225098 | C93: 0.00
A94: - прочие работы, услуги по содержанию имущества | B94: Н225099 | C94: 0.00
A95: Прочие работы, услуги | B95: 226 | C95: 15,000.00 | D95: =SUM(D96:D116) -> 0.00 | E95: =SUM(E96:E116) -> 0.00 | F95: 0.00 | G95: 0.00 | H95: 0.00 | I95: =SUM(I96:I116) -> 15,000.00 | J95: 0.00
A96: - подписка | B96: П226001 | C96: 0.00
A97: - зарплата внештатных сотрудников | B97: П226002 | C97: 0.00
A98: - организация питания | B98: П226003 | C98: 0.00
A99: -приобретение неисключительных прав на программное обеспечение | B99: П226010 | C99: 0.00
A100: -приобретение и обновление справочно-информационных баз данных (Гарант, Консультант и др) | B100: П226013 | C100: 15,000.00 | I100: 15,000.00
A101: - прочие расходы в области информационно-коммуникационных технологий в тч разработка программного обеспечения … | B101: П226015 | C101: 0.00
A102: -разработка схем территориального планирования, планировка территорий | B102: Н226019 | C102: 0.00
A103: - типографские работы, услуги | B103: Н226022 | C103: 0.00
A104: - размещение объявлений, рекламы в СМИ, расходы на теле-радиопрограммы | B104: Н226023 | C104: 0.00
A105: - возмещение расходов и оплата по проживанию в жилых помещениях (найм жилого помещения) при служебных командировках | B105: П226024 | C105: 0.00
A106: - услуги адвокатов, нотариусов, переводчиков, экспертов, инкассаторов | B106: П226025 | C106: 0.00
A107: - проведение инвентаризации, паспортизации основных средств | B107: П226027 | C107: 0.00
A108: -оплата медосмотров | B108: П226031 | C108: 0.00
A109: -услуги по предоставлению во временное пользование мягкого инветаря и спец одежды | B109: П226037 | C109: 0.00
A110: -возмещение работникам расходов по проезду при служебных командировках | B110: П226042 | C110: 0.00
A111: -компенсация расходов на проживание в жилых помещениях спортсменам и студентам при направлении их на различного рода мероприятия | B111: П226043 | C111: 0.00
A112: -компенсация расходов по проезду спортсменам и студентам при направлении их на различного рода мероприятия | B112: П226044 | C112: 0.00
A113: - услуги охраны образовательных учредений ЧОП | B113: П226050 | C113: =SUM(D113:J113) -> 0.00
A114: - за участие в семинарах, совещаниях, конференциях, курсах повышения квалификации, проф. обучение, за образовательные услуги, организация и проведение совещаний, конкурсов, олимпиад, выставок, мероприятий, конференций, соревнований, экскурсий | B114: П226052 | C114: 0.00
A115: - прочие первоочередные расходы по прочим работам, услуам | B115: П226098 | C115: 0.00
A116: - прочие работы, услуги | B116: Н226099 | C116: 0.00
A117: Страхование | B117: 227 | C117: 0.00 | D117: =SUM(D118:D119) -> 0.00 | E117: 0.00 | F117: =SUM(F118:F119) -> 0.00 | G117: 0.00 | H117: 0.00 | I117: 0.00 | J117: 0.00
A118: -услуги по страхованию (за искл.ОСАГО, КАСКО) | B118: П227001 | C118: 0.00
A119: -услуги по страхованию транспорных средств (ОСАГО, КАСКО) | B119: П227002 | C119: 0.00
A120: Услуги, работы для целей капитальных вложений | B120: 228 | C120: 0.00 | D120: =SUM(D121:D122) -> 0.00 | E120: 0.00 | F120: =SUM(F121:F122) -> 0.00 | G120: 0.00 | H120: 0.00 | I120: 0.00 | J120: 0.00
A121: - установка и монтаж локальных вычислительных сетей, систем охранной и пожарной сигнализации, видеонаблюдения, контроля доступа | B121: П228005 | C121: 0.00
A122: - монтажные и пуско-наладочные работы поставляемых технических средств в области информационно-коммуникационных технологий | B122: Н228016 | C122: 0.00
A123: Социальные пособия и компенсация персоналу в денежном виде | B123: 266 | C123: 0.00 | D123: =SUM(D124) -> 0.00 | E123: =SUM(E124) -> 0.00 | F123: =SUM(F124) -> 0.00 | G123: =SUM(G124) -> 0.00 | I123: =SUM(I124) -> 0.00 | J123: =SUM(J124) -> 0.00
A124: - прочие пособия | B124: П266099 | C124: 0.00
A125: Налоги, пошлины и сборы | B125: 291 | C125: 0.00 | D125: =SUM(D126:D128) -> 0.00 | E125: =SUM(E126:E128) -> 0.00 | F125: =SUM(F126:F128) -> 0.00 | G125: =SUM(G126:G128) -> 0.00 | I125: =SUM(I126:I128) -> 0.00 | J125: =SUM(J126:J128) -> 0.00
A126: - прочие налоги, в т.ч.госпошлины (за исключением налогов по школьным автобусам) | B126: П291005 | C126: 0.00
A127: -транспортный налог | B127: П291015 | C127: 0.00
A128: -налог по УСН | B128: П291025 | C128: 0.00
A129: Штрафы за нарушение законодательства о налогах и сборах, законодательства о страховых взносах | B129: 292 | C129: 2,000.00 | D129: =SUM(D130) -> 0.00 | E129: =SUM(E130) -> 0.00 | F129: =SUM(F130) -> 0.00 | G129: =SUM(G130) -> 0.00 | I129: =SUM(I130) -> 2,000.00 | J129: =SUM(J130) -> 0.00
A130: - штрафы, пени и другие экономические санкции | B130: П292003 | C130: 2,000.00 | I130: 2,000.00
A131: Другие экономические санкции | B131: 295 | C131: 0.00 | D131: =SUM(D132:D132) -> 0.00 | E131: =SUM(E132:E132) -> 0.00 | F131: =SUM(F132:F132) -> 0.00 | G131: =SUM(G132:G132) -> 0.00 | H131: =SUM(H132:H132) -> 0.00 | I131: =SUM(I132) -> 0.00 | J131: =SUM(J132) -> 0.00
A132: - штрафы, пени и другие экономические санкции | B132: П295003 | C132: 0.00
A133: Увеличение стоимости основных средств | B133: 310 | C133: 0.00 | D133: =SUM(D134:D137) -> 0.00 | E133: 0.00 | F133: =SUM(F134:F137) -> 0.00 | G133: 0.00 | H133: 0.00 | I133: =SUM(I134:I137) -> 0.00 | J133: 0.00
A134: - приобретение огнетушителей | B134: П310001 | C134: 0.00
A135: -приобретение автоматизированных рабочих мест, серверного и тп оборудования | B135: Н310004 | C135: 0.00
A136: -прочие первоочередные расходы по увеличению стоимости основных средств | B136: П310098 | C136: 0.00
A137: -прочие расходы по увеличению стоимости основных средств | B137: Н310099 | C137: 0.00
A138: Увеличение стоимости лекартсвенных препаратов и материалов, применяемых в медицинских целях | B138: 341 | C138: 0.00 | D138: =SUM(D139) -> 0.00 | E138: 0.00 | F138: 0.00 | G138: 0.00 | H138: 0.00 | I138: =SUM(I139) -> 0.00 | J138: 0.00
A139: -закупка медикаментов, перевязочных средств (расходных материалов) | B139: П341006 | C139: 0.00
A140: Увеличение стоимости продуктов питания | B140: 342 | C140: 0.00 | D140: =SUM(D141) -> 0.00 | E140: =SUM(E141) -> 0.00 | F140: =SUM(F141) -> 0.00 | G140: =SUM(G141) -> 0.00 | I140: =SUM(I141) -> 0.00 | J140: =SUM(J141) -> 0.00
A141: --продукты пиания (за исключением молока и молочных продуктов) | B141: П342005 | C141: 0.00 | I141: =SUM(I143:I144) -> 0.00 | J141: =SUM(J143:J144) -> 0.00
A142: Увеличение стоимости ГСМ | B142: 343 | C142: 0.00 | D142: =SUM(D143:D144) -> 0.00 | E142: 0.00 | F142: =SUM(F143:F144) -> 0.00 | G142: 0.00 | H142: 0.00 | I142: 0.00 | J142: 0.00
A143: - ГСМ | B143: П343001 | C143: 0.00
A144: -моторные масла и спец.смазка | B144: П343015 | C144: 0.00
A145: Увеличение стомости строительных материалов | B145: 344 | C145: 22,782.50 | D145: =SUM(D146:D147) -> 0.00 | E145: =SUM(E146:E147) -> 0.00 | F145: 0.00 | G145: 0.00 | H145: 0.00 | I145: =SUM(I146:I147) -> 22,782.50 | J145: 0.00
A146: -прочие первоочередные расходы по увеличению стоимости стройматериалов | B146: П344098 | C146: 0.00
A147: -прочие расходы по увеличению стоимости стройматериалов | B147: Н344099 | C147: 22,782.50 | I147: 22,782.50
A148: Увеличение стомости мягкого инвентаря | B148: 345 | C148: 0.00 | D148: =SUM(D149) -> 0.00 | E148: 0.00 | F148: 0.00 | G148: 0.00 | H148: 0.00 | I148: =SUM(I149) -> 0.00 | J148: 0.00
A149: - закупка мягкого инвентаря, одежды, обмундирования | B149: П345002 | C149: 0.00
A150: Увеличение стоимости прочих оборотных запасов (материалов) | B150: 346 | C150: 25,000.00 | D150: =SUM(D151:D157) -> 0.00 | E150: 0.00 | F150: =SUM(F151:F157) -> 0.00 | G150: 0.00 | H150: 0.00 | I150: =SUM(I151:I157) -> 25,000.00 | J150: 0.00
A151: - закупка запчастей к оборудованию | B151: П346003 | C151: 0.00
A152: - закупка материалов, используемых в процессе обучения | B152: П346004 | C152: 0.00
A153: -закупка запчастей к транспортным средствам | B153: П346013 | C153: 0.00
A154: -приобретение автошин | B154: П346014 | C154: 0.00
A155: - приобретение канцелярских, хозтоваров, расходных материалов | B155: П346017 | C155: 0.00
A156: -прочие расходы по увеличению стоимости прочих оборотных запасов | B156: П346098 | C156: 0.00
A157: -прочие расходы по увеличению стоимости прочих оборотных запасов | B157: Н346099 | C157: 25,000.00 | I157: 25,000.00
A158: Увеличение стоимости прочих материальных запасов однократного применения | B158: 349 | C158: 0.00 | D158: =SUM(D159:D160) -> 0.00 | E158: =SUM(E159:E160) -> 0.00 | F158: =SUM(F159:F160) -> 0.00 | G158: =SUM(G159:G160) -> 0.00 | I158: =SUM(I159:I160) -> 0.00 | J158: =SUM(J159:J160) -> 0.00
A159: - расходы по увеличению стоимости прочих материальных запасов однократного применения | B159: П349098 | C159: 0.00
A160: - прочие расходы по увеличению стоимости прочих материальных запасов, применяемых в медицинских целях, однократного применения | B160: Н349099 | C160: 0.00
A161: Всего расходов | C161: =SUM(D161:J161) -> 401,501.20 | D161: =D142+D125+D120+D95+D70+D74+D64+D62+D56+D53+D51+D48+D123+D129+D131+D133+D140+D158+D138+D145+D148+D150+D117 -> 1,501.20 | E161: 0.00 | F161: 0.00 | G161: 0.00 | H161: 0.00 | I161: =I158+I150+I148+I145+I142+I140+I138+I133+I131+I129+I125+I123+I120+I117+I95+I74+I70+I64+I62+I56+I53+I51+I48 -> 400,000.00 | J161: 0.00
A164: Руководитель | F164: Р.Т. Гусманова
A167: Начальник планово-экономической группы | F167: Н.В.Трофимова
